Cogmind - Beta 16.1 @@@ ROGUE MODE // 2026.02.14 @ 15:11:54 Player: Lintence Result: Self-destructed Performance ------------- Evolutions (2) 1000 Regions Visited (3) 600 Robots Destroyed (41) 205 Value Destroyed (997) 997 Prototype IDs (3) 60 Alien Tech Used (0) 0 Bonus (0) 0 TOTAL SCORE: 2862 Bonus ------- None Cogmind --------- Core Integrity 391/550 Matter 300/300 Energy 100/100 System Corruption 0% Temperature Cool (9) Movement Walking (175) Ox1 Location -8/Materials Parts ------- > --- POWER (1) -------- (None) > --- PROPULSION (3) --- Aluminum Leg > --- UTILITY (3) ------ Medium Storage Unit Hacking Suite Hacking Suite > --- WEAPON (4) ------- Axe Axe Axe > --- INVENTORY (10) --- Cooled Ion Engine Light Nuclear Core Light Nuclear Core Aluminum Leg Aluminum Leg Signal Interpreter EM Pulse Gun Improved EM Shotgun Particle Gun Heavy Assault Rifle Peak State ------------ > --- POWER ------------ Light Nuclear Core > --- PROPULSION ------- Aluminum Leg Aluminum Leg Aluminum Leg > --- UTILITY ---------- Medium Storage Unit Hacking Suite Hacking Suite > --- WEAPON ----------- Axe Axe Axe Axe > --- INVENTORY -------- Cooled Ion Engine Light Nuclear Core Light Nuclear Core Aluminum Leg Aluminum Leg Signal Interpreter EM Pulse Gun Improved EM Shotgun Heavy Assault Rifle Mini Grenade Launcher [Rating: 27] Favorites ----------- Power Improved Ion Engine Engine Improved Ion Engine Power Core Light Nuclear Core Propulsion Aluminum Leg Leg Aluminum Leg Flight Unit Improved Flight Unit Utility Hacking Suite Device Improved Heat Sink Storage Medium Storage Unit Hackware Hacking Suite Weapon EM Pulse Gun Energy Gun EM Pulse Gun Ballistic Gun Assault Rifle Launcher Mini Grenade Launcher Slashing Weapon Axe Build | -11 -10 -9 -8 ------- Run | Yrd Mat Mat Mat Slots Evolved 4 | . . 2 2 Power . | . . . . Propulsion 1 | . . 1 . Utility 1 | . . 1 . Weapon 2 | . . . 2 Parts Attached 40 | 7 4 21 8 Power 6 | 2 . 2 2 Engine 5 | 2 . 2 1 Core 1 | . . . 1 Reactor . | . . . . Propulsion 11 | 2 1 7 1 Treads . | . . . . Leg 10 | 2 1 6 1 Wheel . | . . . . Hover . | . . . . Flight 1 | . . 1 . Utility 6 | 1 2 2 1 Device 1 | . . 1 . Storage 3 | 1 1 1 . Processor . | . . . . Hackware 2 | . 1 . 1 Protection . | . . . . Artifact . | . . . . Weapon 17 | 2 1 10 4 Energy Gun 9 | 2 . 7 . Energy Cannon . | . . . . Ballistic Gun 3 | . 1 2 . Ballistic Cannon . | . . . . Launcher 1 | . . 1 . Special Weapon . | . . . . Impact Weapon . | . . . . Slashing Weapon 4 | . . . 4 Piercing Weapon . | . . . . Special Melee Weapon . | . . . . Unidentified Prototypes 3 | . . 3 . Corrupted Parts 1 | . 1 . . System Corruption 1 | . 1 . . Parts Lost 12 | . . 8 4 Power 1 | . . . 1 Propulsion 5 | . . 3 2 Utility . | . . . . Weapon 6 | . . 5 1 Highest Loss Streak 6 | . . 6 4 To Critical Strikes . | . . . . Average Backups 7 | 1 3 8 8 Power 1 | . 1 2 1 Propulsion 1 | . . 2 1 Utility . | . . . 1 Weapon 3 | . 1 3 4 Tool/Special . | . . . . Unused Backups 6 | . . 3 3 Power 4 | . . 2 2 Propulsion . | . . . . Utility 1 | . . . 1 Weapon 1 | . . 1 . Tool/Special . | . . . . Average Slot Usage (%) 94 | . 86 96 95 Engine 10 | . 14 10 6 Leg 30 | . 28 32 25 Device 6 | . . 9 3 Storage 11 | . 14 11 9 Hackware 9 | . 1 11 13 Energy Gun 15 | . 15 19 . Ballistic Gun 3 | . 12 1 . Slashing Weapon 5 | . . . 34 Peak Build Rating 27 | 6 9 19 27 Average Rating 13 | 5 6 14 25 On Entrance 8 | . 6 9 19 Avg Prop Armor Cover (%) . | . . . . Naked Turns . | . . . . Heaviest Build 31 | 13 19 24 31 Greatest Support 30 | 20 20 30 30 Greatest Overweight (x) 3 | 3 . 1 2 Average Overweight (x) . | . . . . Largest Inventory Capacity 10 | 8 10 10 10 Average Capacity 9 | 7 8 10 10 Most Carried 10 | 2 5 10 10 Average Carried 7 | 1 3 8 8 Final Capacity 10 | 8 10 10 10 Final Carried 10 | 2 4 10 10 Class Distribution -------------------- 56% | Scavenger-Mutant 36% | Mutant 6% | Hacker-Mutant Dominant Class ---------------- Mutant | -10/Materials Scavenger-Mutant | -9/Materials Hacker-Mutant | -8/Materials Resources | -11 -10 -9 -8 ----------- Run | Yrd Mat Mat Mat Matter Collected 808 | 270 45 322 171 Remotely . | . . . . Salvage Created 1398 | 174 177 840 207 Parts 88 | 11 14 50 13 Haulers Intercepted 1 | . . 1 . Recyclers Shooed . | . . . . Parts Field Recycled . | . . . . Retrieved Matter . | . . . . Parts Self-Destructed . | . . . . Prevented . | . . . . Parts Restored . | . . . . Kills | -11 -10 -9 -8 ------- Run | Yrd Mat Mat Mat Combat Hostiles Destroyed 29 | . 6 17 6 Melee 5 | . . . 5 Guns 16 | . 5 11 . AOE 6 | . 1 4 1 Classes Destroyed 8 | 2 2 4 . Worker 1 | . . 1 . Tunneler 5 | 5 . . . Hauler 1 | . . 1 . Recycler 2 | 1 1 . . Operator 3 | . 1 1 1 Swarmer 12 | . 6 3 3 Grunt 11 | . . 8 3 Sentry 6 | . . 6 . Best Kill Streak 5 | 5 4 5 3 Combat Bots Only 4 | . 3 4 2 Max Kills in Single Turn 2 | 1 2 2 2 Gunslinging 1 | . 1 . . Exploded 1 | . 1 1 1 Melee 2 | . . . 2 Uniques/NPCs Destroyed . | . . . . Combat | -11 -10 -9 -8 -------- Run | Yrd Mat Mat Mat Hostile Shots Fired 166 | . 28 90 48 Missed 52 | . 11 31 10 Hits 114 | . 17 59 38 Projectile 114 | . 17 59 38 Critical Strikes 4 | . . 3 1 Damage Taken 1738 | . 216 947 575 Core 310 | . 19 132 159 Absorbed by Shields . | . . . . Core Remaining (%) 86 | 100 92 67 . Volleys Fired 79 | 10 13 54 2 Largest 2 | 2 2 2 1 Hottest 90 | 80 60 90 30 Shots Fired 150 | 20 26 102 2 Gun 145 | 20 26 99 . Cannon . | . . . . Launcher 5 | . . 3 2 Special . | . . . . Kinetic 25 | . 13 12 . Thermal 24 | 10 . 14 . Explosive 5 | . . 3 2 Electromagnetic 96 | 10 13 73 . Robot Hit Streak 33 | 6 5 33 2 Robot Miss Streak 3 | 1 3 3 . Penetration Max . | . . . . Secondary Targets 4 | . 2 2 . Max Gunslinging Chain 1 | . 1 1 . Shots Hit Robots 118 | 12 11 77 18 Core Hits 57 | 7 8 34 8 Critical Kills . | . . . . Critical Parts Destroyed . | . . . . Critical Strikes 6 | 1 . 4 1 Burn 3 | . . 3 . Corrupt 2 | 1 . 1 . Sever 1 | . . . 1 Melee Attacks 26 | . . . 26 Impact . | . . . . Slashing 26 | . . . 26 Piercing . | . . . . Sneak Attacks 2 | . . . 2 Combat Hostiles . | . . . . Follow-up Attacks 8 | . . . 8 Damage Inflicted 2590 | 163 289 1419 719 Guns 1184 | 163 145 876 . Cannons . | . . . . Explosions 777 | . 144 541 92 Melee 627 | . . . 627 Ramming 2 | . . 2 . Kinetic 138 | . 44 94 . Thermal 571 | 56 144 371 . Explosive 410 | . . 318 92 Electromagnetic 842 | 107 101 634 . Impact . | . . . . Slashing 627 | . . . 627 Piercing . | . . . . Highest Corruption 3 | . 3 . . Average Corruption 2 | . 2 . . Corruption Purged . | . . . . Corruption Blocked . | . . . . Effects 1 | . 1 . . Message Errors 1 | . 1 . . Overload Shots . | . . . . Overflow Damage 95 | . . 95 . Projectiles . | . . . . Explosions 95 | . . 95 . Melee . | . . . . Knockbacks . | . . . . Impact . | . . . . Kinetic . | . . . . Secondary . | . . . . Self-Inflicted Damage 264 | . 80 184 . Shots 5 | . 1 4 . Rammed . | . . . . Targets Rammed 1 | . . 1 . Kicked 1 | . . 1 . Crushed . | . . . . Highest Temperature 126 | 126 12 121 14 Average Temperature 55 | 54 12 56 14 Received Heat Transfer 675 | . . 369 306 Siege Activations . | . . . . Martial Activations . | . . . . Shielding Activations . | . . . . Robots Disrupted . | . . . . Combat Hostiles . | . . . . Robots Corrupted 2 | . . 2 . Combat Hostiles 2 | . . 2 . Parts Fried 5 | 1 . 4 . Impact Corruptions . | . . . . Robots Melted . | . . . . Combat Hostiles . | . . . . Parts Melted 2 | . . 2 . Heat Transferred 1141 | 125 150 866 . Parts Sabotaged . | . . . . Parts Stolen . | . . . . Parts Stripped . | . . . . Power Chain Reactions 3 | . 1 2 . Alert | -11 -10 -9 -8 ------- Run | Yrd Mat Mat Mat Maximum Alert Level 1 | . . 1 . Low Security (%) 87 | 100 100 79 100 Level 1 12 | . . 20 . Level 2 . | . . . . Level 3 . | . . . . Level 4 . | . . . . Level 5 . | . . . . High Security . | . . . . Max Security . | . . . . Peak Influence 244 | 15 184 244 188 Initial 86 | . . 65 86 Average 106 | 3 81 121 132 Influence Increases 1077 | 30 254 601 192 Destroy 0b10 Robot/C 580 | . 120 340 120 Destroy 0b10 Robot/NC 60 | 30 10 15 5 Destroy Leader 132 | . 20 92 20 Successful Hack 16 | . 5 11 . Disable Machine 105 | . 45 60 . Destroy Structure 94 | . 39 38 17 Lose Combat Pursuer 90 | . 15 45 30 Influence Decreases 929 | 30 100 549 250 Entered New Map 209 | . . 89 120 Time Decay 600 | 30 100 380 90 Lost Part 120 | . . 80 40 Squads Dispatched 2 | . . . 2 Investigation . | . . . . Extermination . | . . . . Reinforcement 2 | . . . 2 Assault . | . . . . Garrison . | . . . . Intercept . | . . . . Searches Triggered . | . . . . Construction Impeded . | . . . . Haulers Reinforced . | . . . . Active Scanning Responses . | . . . . Cargo Convoy Interrupts . | . . . . Stealth | -11 -10 -9 -8 --------- Run | Yrd Mat Mat Mat Distress Signals 5 | . . 3 2 Communications Jammed . | . . . . Distress Signals . | . . . . Times Spotted 51 | . 9 29 13 Peak Tracking Total 5 | . 3 5 4 Tactical Retreats 6 | . 1 3 2 Traps | -11 -10 -9 -8 ------- Run | Yrd Mat Mat Mat Traps Triggered 1 | . 1 . . Indirectly . | . . . . Trap Hack Attempts . | . . . . Triggered . | . . . . Disarmed . | . . . . Reprogrammed . | . . . . Reused . | . . . . Traps Extracted . | . . . . Installed . | . . . . Triggered . | . . . . Machines | -11 -10 -9 -8 ---------- Run | Yrd Mat Mat Mat Machines Disabled 8 | . 4 4 . Max in Single Turn 4 | . 4 1 . Machines Repaired . | . . . . Machines Dismantled . | . . . . Machines Sabotaged . | . . . . Overloaded Fab Kills . | . . . . Hacking | -11 -10 -9 -8 --------- Run | Yrd Mat Mat Mat Machines Accessed 6 | . 3 3 . Terminals 5 | . 3 2 . Fabricators . | . . . . Repair Stations . | . . . . Recycling Units . | . . . . Scanalyzers 1 | . . 1 . Garrison Access . | . . . . Total Hacks 16 | . 6 10 . Successful 8 | . 1 7 . Failed 7 | . 5 2 . Catastrophic 2 | . 2 . . Database Lockouts 1 | . . 1 . Manual 7 | . 5 2 . Terminals 12 | . 6 6 . Fabricators . | . . . . Repair Stations . | . . . . Recycling Units . | . . . . Scanalyzers 4 | . . 4 . Garrison Access . | . . . . Terminal Hacks 5 | . 1 4 . Locate Traps 1 | . . 1 . Registered Components 1 | . . 1 . Zone Layout 3 | . 1 2 . Fabricator Hacks . | . . . . Repair Station Hacks . | . . . . Recycling Unit Hacks . | . . . . Scanalyzer 3 | . . 3 . Retrieve Study 3 | . . 3 . Garrison Access Hacks . | . . . . Unauthorized Hacks . | . . . . Terminals . | . . . . Fabricators . | . . . . Repair Stations . | . . . . Recycling Units . | . . . . Scanalyzers . | . . . . Garrison Access . | . . . . Data Cores Recovered . | . . . . Used . | . . . . Hacking Detections 5 | . 3 2 . Full Trace Events . | . . . . Feedback Events . | . . . . Feedback Blocked . | . . . . Robot Schematics Acquired . | . . . . Robots Built . | . . . . Authchips . | . . . . Time . | . . . . Total Robot Build Rating . | . . . . Part Schematics Acquired . | . . . . Parts Built . | . . . . Authchips . | . . . . Time . | . . . . Total Part Build Rating . | . . . . Part Studies Acquired 3 | . . 3 . Parts Repaired . | . . . . Time . | . . . . Parts Recycled . | . . . . Recycled Matter . | . . . . Retrieved Matter . | . . . . Retrieved Components . | . . . . Parts Scanalyzed . | . . . . Part Schematics Acquired . | . . . . Parts Damaged . | . . . . Bothacking | -11 -10 -9 -8 ------------ Run | Yrd Mat Mat Mat Used RIF Installer . | . . . . Robots Hacked . | . . . . Non-combat . | . . . . Combat . | . . . . Robot Hacks Applied . | . . . . Relay Couplers Released . | . . . . Fabnet Peak Effective % . | . . . . Robots Rewired . | . . . . Allies Hacked . | . . . . Hacks Repelled . | . . . . Allies | -11 -10 -9 -8 -------- Run | Yrd Mat Mat Mat Total Allies . | . . . . Largest Group . | . . . . Highest-Rated Group . | . . . . Highest-Rated Ally . | . . . . Total Orders . | . . . . Ally Attacks . | . . . . Total Damage . | . . . . Kills . | . . . . Allies Corrupted . | . . . . Allies Melted . | . . . . Intel | -11 -10 -9 -8 ------- Run | Yrd Mat Mat Mat Active Infowar (turns) . | . . . . Robot Analysis Total . | . . . . Derelict Logs Recovered . | . . . . Drone Launches . | . . . . Drone Recoveries . | . . . . Exploration | -11 -10 -9 -8 ------------- Run | Yrd Mat Mat Mat Turns Passed 1460 | 128 238 897 197 Spaces Moved 884 | 68 154 580 82 Core 11 | 11 . . . Treads . | . . . . Legs 873 | 57 154 580 82 Wheels . | . . . . Hover . | . . . . Flight . | . . . . Fastest Speed 50 | 50 120 105 105 Average Speed 117 | 120 120 113 135 Slowest Speed 245 | 200 120 190 245 Overloaded Moves . | . . . . Propulsion Burnouts . | . . . . Robots Hopped . | . . . . Potential Cave-ins . | . . . . Cave-ins Triggered . | . . . . Exploration Rate (%) 24 | 4 37 51 7 Regions Visited 3 Branch Regions . Pre-discovered Areas . | . . . . Known Exits Taken . | . . . . Unknown Exits Taken 3 | 1 1 1 . Scrap Searched . | . . . . Spaces Dug . | . . . . Terrain Destroyed 109 | . 41 48 20 Melee . | . . . . Projectile . | . . . . AOE 109 | . 41 48 20 Terrain Rammed . | . . . . Walls Destroyed . | . . . . Machines Disabled . | . . . . Actions | -11 -10 -9 -8 --------- Run | Yrd Mat Mat Mat Total 1116 | 90 180 715 131 Wait 39 | 5 7 16 11 Move 881 | 67 153 579 82 Hop . | . . . . Pick Up 22 | 1 2 15 4 Fast Attach 19 | 6 1 10 2 Attach 9 | . 1 6 2 Detach . | . . . . Swap 27 | 1 2 18 6 Drop 22 | . 1 16 5 Fire 79 | 10 13 54 2 Melee 17 | . . . 17 Ram . | . . . . Kick 1 | . . 1 . Crush . | . . . . Escape Stasis . | . . . . Rewire . | . . . . Trap . | . . . . Miscellaneous . | . . . . Route ------- -11/Scrapyard -10/Materials (discovered 3 exits: *Mat / [*Min] / [*Sub]) -9/Materials (discovered 2 exits: [*Mat] / [*Min]) -8/Materials History --------- Turn | Location | Event 24 | -11/Scrapyard | Discovered new exit (range 16) 129 | -11/Scrapyard | Entered Materials 228 | -10/Materials | Discovered new exit (range 4) 287 | -10/Materials | Discovered new exit (range 6) 302 | -10/Materials | Build established: Mutant 360 | -10/Materials | Discovered new exit (range 6) 367 | -10/Materials | Entered another Materials area 367 | -9/Materials | Evolved 2 slots: Propulsion x1, Utility x1 796 | -9/Materials | Discovered new exit (range 5) 801 | -9/Materials | Build established: Scavenger-Mutant 858 | -9/Materials | Central database locked down 1018 | -9/Materials | Discovered new exit (range 10) 1170 | -9/Materials | Lost 6 parts (3n3w) 1264 | -9/Materials | Entered another Materials area 1264 | -8/Materials | Evolved 2 slots: Weapon x2 1461 | -8/Materials | Self-destructed Last Messages --------------- 01424_ Imp. Signal Interpreter tumbles out of TF Node. 01424_ R-06 Scavenger collects Flight Unit. 01424_ Dropped Cld. Ion Engine. 01424_ Dropped Mni. Grenade Launcher. 01426_ Axe follow-up attack on G-47 Trooper. 01430_ Aluminum Leg+ destroyed. 01430_ Critical hit (Burn: +37). 01431_ U-05 Engineer builds a Wall. 01433_ U-05 Engineer lays Concrete. 01433_ Axe follow-up attack on G-47 Trooper. 01433_ G-47 Trooper destroyed. 01442_ Lgt. Nuclear Core destroyed. 01447_ Acquired Particle Gun. 01448_ Acquired 48 matter. 01451_ Acquired Cld. Ion Engine. 01456_ Axe follow-up attack on G-47 Trooper. 01457_ Aluminum Leg+ destroyed. 01461_ Axe destroyed. Map ----- +----------------------------------------------------+ | ?????????????????????????????????????????????????? | | ?????????????????????????????????????????????????? | | ?????????????????????????????????????????????????? | | ?????????????????????????????????????????????????? | | ?????????????????????????????????????????????????? | | ?????????????????????????????????????????????????? | | ?????????????????????????????????????????????????? | | ?????????????????????????????????????????????????? | | ?????????????????????????????????????????????????? | | ?????????????????????????????????????????????????? | | ?????????????????????????????????????????????????? | | ?????????????????????????????????????????????????? | | ?????????????????????????????????????????????????? | | ?????????????????????????????????????????????????? | | ?????????????????????????????????????????????????? | | ?????????????????????????????????????????????????? | | ???????????????????????#############?????????????? | | ???????????????????????#! #?????????????? | | ???????????????????????# #?????????????? | | ???????????????????????# #?????????????? | | ????#??????????#####???# #?????????????? | | ????# ?????????? ????+ """ """ #?????????????? | | ?####+########### #????# """ """ #?????????????? | | ?? ## ##???#u """ """ #?????????????? | | ?# """ """ """ # ######g###+######?????????????? | | ?# "R """ """ + T g !@ #?????????????? | | ?# """ """ """ # ###### * #?????????????? | | ?# #####??# # * #?????????????? | | ?# [ ########## ##########?????????????? | | #########+####### ## # ## #?????????????????? | | " % ! ###g######?????????????????? | | %" *]!#??????????????????????? | | " /%* ! #####??????????????????????? | | ################# #??????????????????????????? | | ????????????????#######??????????????????????????? | | ?????????????????????????????????????????????????? | | | | | | | | | | | | | | | | | | | | | | | | | | | | | +----------------------------------------------------+ Best States ------------- Heat Dissipation 45 Energy Generation 14 Energy Capacity 280 Matter Stores 300 Matter Capacity 300 Sight Range 16 Terrain Scan Density 10 Evasion (%) 55 Offensive Hacking 20 Item Schematics ----------------- None Robot Schematics ------------------ None Fabricated ------------ Nothing Repaired ---------- Nothing Studied --------- EM Pulse Gun | -9/Materials | Hacked Aluminum Leg | -9/Materials | Hacked Imp. Ion Engine | -9/Materials | Hacked Alien Tech Used ----------------- None Achievements -------------- None Challenges ------------ None Game ------ Seed CannonXenonArachnoskeleton Manual? 0 Play Time 00:21:35 Cumulative 76.8 hours Start 2026.02.14 @ 14:52:59 End 2026.02.14 @ 15:11:54 Sessions 1 Manual Loads 0 Difficulty Rogue Special Mode None Game No. 145 Rogue 145 Adventurer 0 Explorer 0 Win Type - Total 1 Types 1/0/0/0/0/0/0/0/0/0 Lore% 25 Gallery% 34 Achievement% 25 Wizard Run 0 Options --------- Layout 1 ASCII 0 Keyboard 0 Movement Mouse Keybinds 0 Fullscreen 2 Font 20/X11 Map View 50x35 Zoom Use 0% Tactical HUD 1 Map Filters NONE Filters NONE Steam 1 RUN: 1e2fc381-c419-4a56-833a-db053eb4a177